bitfinex/quotes_ETHUSD_20250726
["timestamp","ask_amount","ask_price","bid_price","bid_amount"]
[1753492568415,0.1344,3725.2,3724.9,0.9219]
[1753492568593,0.1344,3725.2,3724.8,1.08586]
[1753492568793,0.1344,3725.2,3725.0,0.9219]
[1753492569412,0.1344,3725.2,3725.0,0.4778]
[1753492569912,0.1344,3725.2,3725.1,0.4778]
[1753492570775,0.1344,3725.2,3724.9,0.4441]
[1753492571116,2.68455863,3725.1,3724.9,0.4778]
[1753492571288,2.81884021,3725.2,3724.9,0.4778]
[1753492571488,2.68453472,3725.1,3724.9,0.4778]
[1753492571688,2.81884186,3725.2,3724.9,0.4778]
[1753492572311,2.68449485,3725.1,3724.9,0.4778]
[1753492572612,2.81884458,3725.2,3724.9,0.4778]
[1753492574014,2.68449839,3725.1,3724.9,0.4778]
[1753492574424,2.68456375,3725.0,3724.9,1.0278]
[1753492575018,2.6847079,3724.8,3724.7,0.1344]
[1753492575219,3.7193079,3724.8,3724.5,4.2]
[1753492575541,0.1344,3724.6,3724.5,4.2]
[1753492575694,2.81925206,3724.6,3724.5,4.2]
[1753492576033,3.26875206,3724.6,3724.5,4.2]
[1753492577730,2.68577956,3723.4,3722.8,0.7868]
[1753492578032,0.4495,3723.7,3722.8,0.7868]
[1753492578243,2.68589218,3723.2,3722.9,2.9198]
[1753492578538,2.68589218,3723.2,3723.0,1.0278]
[1753492578702,2.68581169,3723.3,3723.0,1.0278]
[1753492578902,2.68574438,3723.4,3723.1,0.4778]
[1753492579102,2.68574438,3723.4,3723.1,0.9219]
[1753492579402,2.68580702,3723.3,3723.1,0.9219]
[1753492579717,2.68580702,3723.3,3723.2,0.4778]
[1753492580403,2.68572614,3723.4,3723.2,0.4778]
[1753492580599,2.68572614,3723.4,3723.1,0.4441]
[1753492580804,2.68572614,3723.4,3723.3,0.4755]
[1753492582036,2.68572614,3723.4,3723.0,1.0255]
[1753492582236,2.68578948,3723.3,3723.0,0.55]
[1753492582433,2.68578948,3723.3,3723.1,0.4755]
[1753492582941,2.68578948,3723.3,3723.2,0.4755]
[1753492583939,2.68573316,3723.4,3723.2,0.4755]
[1753492584141,2.68573316,3723.4,3723.0,0.55]
[1753492584344,2.68566697,3723.5,3723.3,0.4755]
[1753492584502,2.68566697,3723.5,3723.0,0.55]
[1753492584503,2.442,3724.0,3723.4,0.9166]
[1753492584708,2.68564146,3723.6,3723.5,0.4755]
[1753492584910,2.6857146,3723.5,3723.0,0.55]
[1753492585130,2.68564146,3723.6,3723.3,0.4755]
[1753492585444,2.68564522,3723.5,3723.3,0.4755]
[1753492585741,2.68571735,3723.4,3723.3,0.4755]
[1753492586041,2.6857941,3723.3,3723.2,0.55]
[1753492586248,2.6857285,3723.4,3723.2,0.55]
[1753492586448,2.6857285,3723.4,3723.1,0.55]
[1753492586656,2.6857285,3723.4,3723.1,1.4666]
[1753492586857,2.6857285,3723.4,3723.1,0.9911]
[1753492587150,2.68555661,3723.7,3723.2,0.9166]
[1753492587351,2.442,3724.0,3723.1,0.83989206]
[1753492587352,2.68558055,3723.6,3723.1,0.83989206]
[1753492587658,4.03152914,3723.3,3722.3,2.443]
[1753492587822,2.68610033,3722.9,3722.4,0.55]
[1753492588023,0.1344,3722.9,3722.4,0.55]
[1753492588230,2.68631745,3722.6,3722.4,1.0255]
[1753492588447,2.68651102,3722.3,3722.0,0.4755]
[1753492588648,2.68651102,3722.3,3722.2,2.444]
[1753492589714,3.26378131,3722.5,3722.2,2.444]
[1753492590245,3.26378131,3722.5,3722.2,2.9195]
[1753492590423,2.82078131,3722.5,3722.2,2.9195]
[1753492590626,2.68644176,3722.4,3722.2,2.9195]
[1753492591719,2.82078683,3722.5,3722.2,2.9195]
[1753492592447,2.82078683,3722.5,3722.0,0.55]
[1753492592647,2.68645111,3722.4,3722.1,0.4755]
[1753492592851,2.6866428,3722.2,3721.8,0.1344]
[1753492593017,0.1344,3722.2,3721.8,0.55]
[1753492593221,2.82098659,3722.2,3721.8,2.994]
[1753492593552,3.26398659,3722.2,3721.8,3.4695]
[1753492593953,3.26398659,3722.2,3721.8,2.994]
[1753492594318,2.82098659,3722.2,3721.9,0.4755]
[1753492594519,0.1344,3722.2,3721.9,0.4755]
[1753492596851,2.82099032,3722.2,3721.8,0.55]
[1753492597052,3.26399032,3722.2,3721.8,1.0255]
[1753492597224,0.5774,3722.2,3721.8,1.0255]
[1753492597561,0.1344,3722.2,3721.9,0.4755]
[1753492597936,0.1344,3722.2,3722.0,0.4755]
[1753492601249,0.1344,3722.2,3722.1,0.4755]
[1753492605373,0.1344,3722.2,3722.1,0.9166]
[1753492607066,0.1344,3722.2,3722.1,0.4755]
[1753492615789,0.1344,3722.2,3721.9,0.4722]
[1753492616189,0.1344,3722.2,3722.0,0.4722]
[1753492616687,0.1344,3722.2,3722.1,0.4722]
[1753492617288,0.1344,3722.2,3721.9,0.4702]
[1753492617489,0.1344,3722.2,3722.0,0.4722]
[1753492618875,0.1344,3722.2,3722.1,0.4722]
[1753492620587,0.1344,3722.2,3722.1,0.9424]
[1753492623297,0.1344,3722.2,3722.1,0.4722]
[1753492623495,0.1344,3722.2,3721.8,1.4924]
[1753492623664,0.1344,3722.2,3721.9,0.4722]
[1753492624190,0.1344,3722.2,3721.8,0.55]
[1753492624390,1.0637,3722.2,3721.8,2.989]
[1753492624689,0.6079,3722.2,3721.8,2.989]
[1753492624892,0.1344,3722.2,3721.9,0.4722]
[1753492625065,0.1344,3722.2,3721.8,3.4592]
[1753492625266,0.1344,3722.2,3721.9,0.4722]
[1753492625466,0.1344,3722.2,3722.0,0.4722]
[1753492626194,0.1344,3722.2,3722.1,0.4722]
[1753492627797,0.1344,3722.2,3721.8,1.0202]
[1753492627965,0.1344,3722.2,3721.9,0.4722]
[1753492628393,0.1344,3722.2,3721.9,0.4702]
[1753492628694,0.1344,3722.2,3722.0,0.4722]
[1753492629503,0.1344,3722.2,3721.8,0.55]
[1753492629704,0.1344,3722.2,3722.1,0.4722]
[1753492630071,0.1344,3722.2,3722.1,0.9424]
[1753492630974,0.1344,3722.2,3722.1,0.4722]
[1753492631300,0.1344,3722.2,3722.1,0.9424]
[1753492635803,0.1344,3722.2,3722.1,0.4722]
[1753492636098,0.1344,3722.2,3721.9,0.4722]
[1753492638508,0.7989,3722.1,3721.7,0.1344]
[1753492638694,0.7989,3722.1,3721.0,1.2771]
[1753492638695,2.68697014,3721.7,3721.2,0.4722]
[1753492639009,0.1344,3721.9,3721.2,0.4722]
[1753492639010,0.1344,3721.6,3721.3,0.4702]
[1753492639303,0.1344,3721.6,3721.1,2.438]
[1753492639304,3.16065779,3721.5,3721.1,2.438]
[1753492639506,0.1344,3721.3,3721.1,2.438]
[1753492639805,0.1344,3721.3,3721.2,0.4722]
[1753492639985,0.1344,3721.3,3721.2,3.62970517]
[1753492640489,0.1344,3721.7,3721.3,0.55]
[1753492640713,0.7989,3722.2,3721.6,2.68701633]
[1753492640892,0.1344,3721.8,3721.6,2.68701633]
[1753492641204,0.1344,3721.8,3721.7,0.9629]
[1753492641406,0.1344,3721.8,3721.7,3.18304413]
[1753492641610,0.1344,3722.0,3721.7,4.48074195]
[1753492641773,2.6864915,3722.4,3721.7,4.48074195]
[1753492641774,0.4368,3722.9,3721.9,0.55]
[1753492641978,0.1344,3722.5,3722.3,2.68645312]
[1753492642297,0.1344,3722.5,3722.4,0.9629]
[1753492644412,0.1344,3723.0,3722.5,0.55]
[1753492644631,0.8253,3723.3,3722.4,3.5373]
[1753492644632,0.1344,3723.1,3722.7,0.55]
[1753492644919,0.1344,3723.1,3722.7,3.23621815]
[1753492645104,0.1344,3723.1,3722.8,0.9629]
[1753492645494,0.1344,3723.1,3722.9,0.9629]
[1753492645674,0.1344,3723.1,3722.6,0.1344]
[1753492645877,0.1344,3723.1,3722.8,0.9629]
[1753492646190,0.1344,3723.1,3722.9,0.9629]
[1753492646591,0.1344,3723.1,3723.0,0.9629]
[1753492648334,0.1344,3723.1,3723.0,0.4961]
[1753492648620,0.1344,3723.1,3722.8,0.4961]
[1753492649482,2.82033479,3723.1,3722.8,0.4961]
[1753492650112,0.1344,3723.1,3722.8,0.4961]
[1753492650426,0.1344,3723.1,3722.9,0.4961]
[1753492650925,2.82038424,3723.1,3722.8,0.4961]
[1753492651715,0.1344,3723.1,3722.8,0.4961]
[1753492652237,2.82034154,3723.1,3722.8,0.4961]
[1753492652385,0.1344,3723.1,3722.8,0.4961]
[1753492652585,0.1344,3723.1,3722.7,1.0168]
[1753492652819,0.1344,3723.1,3722.9,0.4961]
[1753492654128,0.1344,3723.1,3722.7,0.55]
[1753492654431,3.46905925,3723.0,3722.7,0.55]
[1753492654587,2.68608337,3722.9,3722.7,0.55]
[1753492655189,0.9296,3722.8,3722.5,2.441]
[1753492655430,0.1344,3722.7,3722.5,2.441]
[1753492656133,0.1344,3722.7,3722.5,2.9371]
[1753492657041,0.1344,3722.7,3722.5,3.29093]
[1753492657248,0.1344,3722.7,3722.6,0.9629]
[1753492658225,0.783,3723.4,3722.7,0.55]
[1753492658521,0.1344,3723.1,3722.8,0.9629]
[1753492658721,0.1344,3723.1,3722.9,0.9629]
[1753492659142,0.1344,3723.1,3723.0,0.9629]
[1753492661146,0.1344,3723.1,3723.0,0.4961]
[1753492662816,0.1344,3723.1,3723.0,0.9629]
[1753492663814,0.1344,3723.1,3723.0,0.4961]
[1753492664509,0.1344,3723.1,3723.0,0.9629]
[1753492668548,0.1344,3723.1,3723.0,0.4961]
[1753492668718,0.1344,3723.1,3722.7,0.55]
[1753492668719,0.7795,3723.0,3722.7,0.55]
[1753492668917,0.4368,3722.9,3722.7,0.55]
[1753492670453,0.4368,3722.9,3722.4,4.2]
[1753492670454,2.68622236,3722.7,3722.4,4.2]
[1753492670789,3.15982236,3722.7,3722.4,4.2]
[1753492671052,3.15989804,3722.6,3722.4,4.2]
[1753492671255,3.61749804,3722.6,3722.4,4.2]
[1753492671457,0.4736,3722.6,3722.4,4.2]
[1753492671680,2.68636668,3722.5,3722.4,4.2]
[1753492671825,2.68636668,3722.5,3722.0,2.44]
[1753492671826,2.68665538,3722.1,3722.0,2.44]
[1753492672033,2.68665538,3722.1,3721.7,0.5967]
[1753492672239,3.61795189,3722.0,3721.7,2.441]
[1753492672484,0.7795,3722.1,3721.6,0.1344]
[1753492672651,0.1344,3721.7,3721.5,2.441]
[1753492672968,0.608,3721.7,3721.5,2.441]
[1753492673288,0.1344,3721.7,3721.5,2.441]
[1753492673769,0.1344,3721.7,3721.5,0.4623]
[1753492673969,0.1344,3721.7,3721.6,0.4623]
[1753492675035,0.1344,3721.7,3721.6,0.8957]
[1753492677138,0.1344,3721.7,3721.6,0.4623]
[1753492678256,0.1344,3721.7,3721.4,2.441]
[1753492678466,0.1344,3721.7,3721.5,0.4623]
[1753492678977,0.1344,3721.7,3721.4,2.441]
[1753492679342,0.1344,3721.7,3721.4,2.9033]
[1753492679770,0.1344,3721.7,3721.2,0.55]
[1753492679970,1.0656,3721.7,3721.3,2.44]
[1753492680169,0.608,3721.7,3721.3,2.9023]
[1753492680371,0.1344,3721.7,3721.4,0.8957]
[1753492680571,0.1344,3721.7,3721.5,0.8957]
[1753492680815,0.1344,3721.7,3721.5,3.58276126]
[1753492680971,0.1344,3722.0,3721.6,0.55]
[1753492681169,2.68664883,3722.2,3721.8,0.55]
[1753492681170,0.1344,3722.2,3721.8,0.55]
[1753492681470,0.1344,3722.2,3721.9,0.8957]
[1753492681704,0.1344,3722.2,3722.0,0.8957]
[1753492681868,0.1344,3722.2,3721.8,0.55]
[1753492681869,0.1344,3722.2,3722.1,0.4623]
[1753492682609,0.1344,3722.2,3721.8,1.0123]
[1753492682774,0.1344,3722.2,3722.0,0.4623]
[1753492683466,0.1344,3722.2,3721.7,2.44]
[1753492683467,0.1344,3722.2,3721.7,0.55]
[1753492683699,2.82099472,3722.2,3721.7,2.991]
[1753492683903,0.1344,3722.2,3721.8,0.8957]
[1753492684203,0.1344,3722.2,3721.9,0.4623]
[1753492684805,2.82099356,3722.2,3722.0,0.4623]
[1753492685302,2.82099356,3722.2,3721.7,0.9834]
[1753492685508,0.1344,3722.2,3722.0,0.4623]
[1753492685866,2.82099931,3722.2,3722.0,0.4623]
[1753492688017,2.68665538,3722.1,3722.0,0.4623]
[1753492688322,2.68665538,3722.1,3721.8,0.4623]
[1753492688483,2.68665538,3722.1,3721.7,1.29417589]
[1753492688686,2.68665538,3722.1,3721.8,0.4623]
[1753492689208,2.68674429,3722.0,3721.8,0.4623]
[1753492689901,2.68674429,3722.0,3721.6,0.6844]
[1753492690210,2.68699226,3721.7,3721.5,4.2]
[1753492690916,2.68699226,3721.7,3721.5,4.6623]
[1753492691282,2.68699226,3721.7,3721.5,0.4623]
[1753492692010,2.82129796,3721.8,3721.5,0.4623]
[1753492692623,2.68695782,3721.7,3721.5,0.4623]
[1753492693726,2.8212787,3721.8,3721.5,0.4623]
[1753492693928,0.1344,3721.8,3721.3,0.55]
[1753492694124,0.1344,3721.8,3721.6,0.4623]
[1753492694440,0.1344,3721.8,3721.7,0.4623]
[1753492695344,2.82127194,3721.8,3721.7,0.4623]
[1753492696426,2.82127194,3721.8,3721.4,0.8957]
[1753492696729,2.82127194,3721.8,3721.5,0.4623]
[1753492696910,2.82127194,3721.8,3721.4,0.4334]
[1753492697111,2.82127194,3721.8,3721.6,0.4623]
[1753492698212,0.1344,3721.8,3721.6,0.4623]
[1753492698432,0.1344,3721.8,3721.7,0.4623]
[1753492699396,2.82127194,3721.8,3721.7,0.4623]
[1753492699832,2.68694603,3721.7,3721.5,0.8957]
[1753492700027,2.68694603,3721.7,3721.6,0.4653]
[1753492700724,2.68694603,3721.7,3721.4,1.43132211]
[1753492700949,0.1344,3721.8,3721.4,1.43132211]
[1753492700950,2.68702082,3721.6,3721.4,1.43132211]
[1753492701426,2.68696575,3721.7,3721.4,1.43132211]
[1753492701820,2.68701869,3721.6,3721.4,1.43132211]
[1753492702125,2.68696438,3721.7,3721.4,1.43132211]
[1753492703130,2.68707706,3721.6,3721.4,0.96602211]
[1753492703446,2.68707706,3721.6,3721.4,0.4653]
[1753492704301,2.68695237,3721.7,3721.5,0.4653]
[1753492704641,2.68695237,3721.7,3721.4,0.4481]
[1753492704941,2.68695237,3721.7,3721.4,0.9134]
[1753492705233,2.68701971,3721.6,3721.5,0.4653]
[1753492706533,2.68695647,3721.7,3721.5,0.4653]
[1753492706839,2.68701633,3721.6,3721.5,0.4653]
[1753492707832,2.68696256,3721.7,3721.5,0.4653]
[1753492708806,2.68696256,3721.7,3721.3,2.439]
[1753492709006,3.13526256,3721.7,3721.3,2.9043]
[1753492709207,3.13526256,3721.7,3721.4,0.4653]
[1753492709515,2.68696256,3721.7,3721.5,0.4653]
[1753492710330,2.68701633,3721.6,3721.3,2.439]
[1753492710507,2.68701633,3721.6,3721.3,2.9043]
[1753492711830,3.13526791,3721.7,3721.3,2.9043]
[1753492712030,3.13526791,3721.7,3721.3,3.62724393]
[1753492712339,3.13526791,3721.7,3721.3,1.65354393]
[1753492712340,2.6870614,3721.6,3721.3,1.65354393]
[1753492713854,2.6870614,3721.6,3721.3,0.55]
[1753492714007,0.4483,3721.6,3721.3,0.55]
[1753492714214,3.51415951,3721.7,3721.4,0.4653]
[1753492714521,2.82132715,3721.8,3721.5,0.4653]
[1753492714749,2.82132715,3721.8,3721.6,0.4653]
[1753492715039,2.68694413,3721.7,3721.6,0.4653]
[1753492715441,2.68694413,3721.7,3721.3,0.9981]
[1753492715739,2.68694413,3721.7,3721.4,0.4653]
[1753492717139,2.68702845,3721.6,3721.4,0.4653]
[1753492717844,2.68697135,3721.7,3721.4,0.4653]
[1753492718041,2.68697135,3721.7,3721.5,0.4653]
[1753492718341,2.68697135,3721.7,3721.3,0.9981]
[1753492718547,2.68695353,3721.7,3721.4,1.11099745]
[1753492718864,2.68695353,3721.7,3721.5,0.4653]
[1753492720558,2.68701633,3721.6,3721.3,1.0153]
[1753492720933,2.68701633,3721.6,3721.4,0.4653]
[1753492722555,2.68695975,3721.7,3721.4,0.4653]
[1753492723144,2.68695975,3721.7,3721.5,0.4653]
[1753492724753,2.6870285,3721.6,3721.3,1.0153]
[1753492725656,2.68709043,3721.5,3721.3,1.0153]
[1753492725859,0.4483,3721.5,3721.1,2.439]
[1753492726153,2.68728424,3721.3,3721.1,2.439]
[1753492726853,2.68723295,3721.3,3720.9,2.439]
[1753492727018,0.1344,3721.1,3720.9,2.439]
[1753492727214,0.1344,3721.1,3720.7,0.4653]
[1753492727447,2.68752852,3720.9,3720.8,2.439]
[1753492727827,2.68745498,3721.0,3720.8,2.439]
[1753492728032,0.5827,3721.1,3720.8,2.9043]
[1753492728420,0.1344,3721.1,3720.8,2.8871]
[1753492728616,0.1344,3721.1,3720.9,0.4653]
[1753492729570,0.1344,3721.1,3721.0,0.4653]
[1753492729784,0.1344,3721.1,3721.0,0.9134]
[1753492730571,0.1344,3721.1,3721.0,1.4732]
[1753492730781,0.1344,3721.4,3721.1,0.55]
[1753492731057,2.6872533,3721.3,3720.8,3.3939]
[1753492731251,3.1557533,3721.3,3720.9,0.55]
[1753492731452,3.1557533,3721.3,3720.9,1.047]
[1753492732666,3.1557533,3721.3,3720.9,0.55]
[1753492732843,3.1557533,3721.3,3721.0,0.497]
[1753492732844,0.4685,3721.3,3721.0,0.497]
[1753492733335,3.29457408,3721.4,3721.0,0.497]
[1753492733533,3.76307408,3721.4,3721.0,0.497]
[1753492733965,0.6029,3721.4,3721.1,0.497]
[1753492734666,0.1344,3721.4,3721.1,0.497]
[1753492735351,0.1344,3721.4,3720.9,3.23751018]
[1753492735664,0.1344,3721.4,3721.2,0.497]
[1753492738471,0.1344,3721.4,3721.3,0.497]
[1753492738952,2.439,3721.6,3721.3,0.9549]
[1753492739132,2.5734,3721.6,3721.1,0.55]
[1753492739335,2.5734,3721.6,3721.4,0.497]
[1753492741678,0.1344,3721.6,3721.2,2.68729758]
[1753492741971,0.7932,3722.2,3721.2,2.68729758]
[1753492741972,0.1344,3721.8,3721.6,2.68700326]
[1753492742267,2.5734,3722.0,3721.7,0.9549]
[1753492742472,2.5734,3722.0,3721.7,0.4579]
[1753492742768,2.5734,3722.0,3721.8,0.497]
[1753492743870,5.2601369,3722.0,3721.8,0.497]
[1753492744038,6.22828818,3722.0,3721.3,4.2]
[1753492744239,0.1344,3721.7,3721.3,4.2]
[1753492744449,3.62851882,3721.6,3721.3,4.2]
[1753492744648,0.1344,3721.4,3721.3,4.2]
[1753492744852,0.1344,3721.4,3721.0,0.4579]
[1753492745048,0.1344,3721.4,3721.1,0.497]
[1753492745473,0.1344,3721.4,3720.9,3.0]
[1753492745675,0.1344,3721.4,3721.2,0.497]
[1753492746372,0.1344,3721.4,3721.3,0.497]
[1753492749604,0.1344,3721.4,3721.3,0.9549]
[1753492751086,0.1344,3721.4,3721.3,0.497]
[1753492751282,0.1344,3721.5,3721.3,0.9549]
[1753492751463,0.1344,3721.5,3721.1,2.68736173]
[1753492751667,0.1344,3721.5,3721.4,0.9549]
[1753492752766,2.5724,3721.6,3721.4,0.9549]
[1753492753297,2.5724,3721.6,3721.5,0.497]
[1753492753870,0.1344,3721.6,3721.5,0.9549]
[1753492754490,0.1344,3721.6,3721.5,0.497]
[1753492754866,0.1344,3721.6,3721.3,0.497]
[1753492755060,2.82147571,3721.6,3721.3,0.497]
[1753492755288,0.1344,3721.6,3721.3,0.497]
[1753492755793,0.6029,3721.6,3721.1,0.55]
[1753492756002,0.1344,3721.6,3721.2,0.497]
[1753492756199,0.6029,3721.6,3721.1,0.55]
[1753492756388,3.76293892,3721.6,3721.2,0.497]
[1753492757091,0.6029,3721.6,3721.2,0.497]
[1753492757394,3.28997492,3721.6,3721.3,0.497]
[1753492757599,2.68710797,3721.5,3721.1,1.047]
[1753492757778,0.4685,3721.5,3721.1,0.55]
[1753492757975,0.4685,3721.5,3721.2,0.497]
[1753492758170,2.82142928,3721.6,3721.3,0.497]
[1753492758767,0.8253,3721.4,3720.9,0.55]
[1753492758967,0.1344,3721.3,3721.0,0.497]
[1753492760202,0.1344,3721.3,3720.9,0.55]
[1753492760497,0.1344,3721.3,3721.0,0.4583]
[1753492761000,0.1344,3721.3,3721.0,0.9001]
[1753492761204,0.1344,3721.3,3721.0,0.4418]
[1753492761502,2.82164374,3721.3,3721.1,0.4583]
[1753492761673,0.1344,3721.3,3721.1,0.4583]
[1753492761873,2.82163359,3721.3,3721.1,0.4583]
[1753492762075,2.68731544,3721.2,3720.9,0.55]
[1753492762304,3.28824034,3721.3,3720.9,0.55]
[1753492762604,2.82164034,3721.3,3721.0,0.4583]
[1753492762800,0.1344,3721.3,3721.1,0.4583]
[1753492762971,0.1344,3721.3,3721.1,0.9001]
[1753492763173,0.1344,3721.3,3721.2,0.4583]
[1753492764006,0.1344,3721.3,3721.0,0.4583]
[1753492764300,0.1344,3721.3,3721.0,0.9001]
[1753492764701,0.1344,3721.3,3721.1,0.9001]
[1753492765015,0.1344,3721.3,3721.2,0.4583]
[1753492765572,0.1344,3721.3,3721.2,0.9001]
[1753492769316,3.61377743,3721.8,3721.2,0.9001]
[1753492769317,0.763,3721.9,3721.2,0.9001]
[1753492769609,0.1344,3721.6,3721.3,0.9001]
[1753492769810,0.1344,3721.6,3721.2,0.55]
[1753492770017,0.1344,3721.6,3721.4,0.9001]
[1753492770182,0.1344,3721.6,3721.4,0.4418]
[1753492770515,2.82141633,3721.6,3721.5,0.4583]
[1753492770679,2.82141633,3721.6,3721.2,0.4418]
[1753492770884,2.68709636,3721.5,3721.3,0.4583]
[1753492771213,2.82142007,3721.6,3721.3,0.4583]
[1753492771992,3.28802007,3721.6,3721.3,0.4583]
[1753492772487,2.6871128,3721.5,3721.3,0.4583]
[1753492772688,0.1344,3721.6,3721.1,0.1344]
[1753492772883,2.6872238,3721.4,3721.1,0.55]
[1753492773079,3.1538238,3721.4,3721.0,1.0083]
[1753492773287,2.68725983,3721.3,3721.0,1.0083]
[1753492773484,2.68725983,3721.3,3721.0,0.55]
[1753492773687,2.68736889,3721.2,3721.0,0.4583]
[1753492774295,2.68731991,3721.2,3721.0,0.4583]
[1753492776408,2.82163575,3721.3,3721.0,0.4583]
[1753492776587,0.1344,3721.3,3721.0,0.4583]
[1753492776919,0.1344,3721.3,3721.1,0.4583]
[1753492777293,2.82164295,3721.3,3721.1,0.4583]
[1753492777824,2.82164295,3721.3,3720.9,0.9918]
[1753492777987,2.82164295,3721.3,3721.2,0.4583]
[1753492778891,0.1344,3721.3,3721.2,0.4583]
[1753492779323,2.82163295,3721.3,3721.2,0.4583]
[1753492779526,2.82163295,3721.3,3721.0,0.4418]
[1753492779735,2.82163295,3721.3,3721.1,0.4583]
[1753492780439,0.1344,3721.3,3721.1,0.4583]
[1753492781738,2.68730517,3721.2,3720.9,1.0083]
[1753492781924,2.68730517,3721.2,3720.9,0.55]
[1753492782107,2.68730517,3721.2,3721.0,0.4583]
[1753492782303,2.82165835,3721.3,3721.0,0.4583]
[1753492782827,2.68732048,3721.2,3721.0,0.4583]
[1753492783031,1.0613,3721.3,3720.9,0.55]
[1753492783230,2.68730613,3721.2,3720.9,1.0083]
[1753492783925,2.68739102,3721.1,3720.9,1.0083]
[1753492784427,1.0613,3721.3,3720.9,1.0083]
[1753492784635,2.6873141,3721.2,3720.9,0.55]
[1753492784838,2.6873141,3721.2,3721.0,0.4583]
[1753492787639,2.68771366,3720.7,3720.3,3.0]
[1753492787802,2.68782966,3720.5,3720.1,0.4583]
[1753492788143,0.9269,3720.7,3720.1,0.4583]
[1753492788144,2.68788361,3720.4,3720.2,0.55]
[1753492788307,2.6878252,3720.5,3720.2,1.0083]
[1753492788808,0.1344,3720.6,3720.3,0.4583]
[1753492788809,2.8221581,3720.6,3720.3,0.4583]
[1753492789641,0.1344,3720.6,3720.2,0.9918]
[1753492789940,0.1344,3720.6,3720.4,0.4583]
[1753492790534,0.1344,3720.6,3720.4,0.8902]
[1753492791443,0.1344,3720.6,3720.5,0.4694]
[1753492792660,2.6880067,3720.3,3719.7,0.4694]
[1753492792952,0.1344,3720.1,3719.7,0.4694]
[1753492793324,0.1344,3720.1,3719.8,1.0194]
[1753492793537,2.5724,3720.3,3719.9,0.9013]
[1753492793742,2.5724,3720.3,3720.0,0.9013]
[1753492794330,2.5724,3720.3,3720.1,0.4694]
[1753492794640,2.5724,3720.3,3720.0,0.4319]
[1753492796454,2.5724,3720.3,3720.1,0.9013]
[1753492796653,2.5724,3720.3,3720.1,0.4694]
[1753492796833,2.5724,3720.3,3719.8,0.4319]
[1753492796834,0.1344,3720.3,3719.9,1.0194]
[1753492797029,0.1344,3720.3,3720.0,0.4694]
[1753492797429,0.1344,3720.3,3719.9,0.9819]
[1753492797629,0.1344,3720.3,3720.1,0.4694]
[1753492798352,0.1344,3720.3,3719.9,0.9819]
[1753492798524,0.1344,3720.3,3720.2,0.4694]
[1753492799055,0.1344,3720.3,3720.2,0.9013]
[1753492800253,0.1344,3720.3,3720.2,0.4694]
[1753492801424,3.26485527,3720.3,3719.9,0.4694]
[1753492801640,3.26485527,3720.3,3719.8,0.55]
[1753492801955,2.68837189,3719.8,3719.5,2.438]
[1753492802144,0.1344,3719.9,3719.5,2.9074]
[1753492802456,1.0547,3719.9,3719.5,1.0194]
[1753492803059,3.7429559,3719.9,3719.5,1.0194]
[1753492804047,1.0547,3719.9,3719.5,1.0194]
[1753492804559,3.74294778,3719.9,3719.5,1.0194]
[1753492805059,0.1344,3719.9,3719.5,0.55]
[1753492805248,0.1344,3719.9,3719.6,0.9013]
[1753492805447,0.1344,3719.9,3719.7,0.9013]
[1753492805637,0.1344,3719.9,3719.7,1.6758]
[1753492805837,0.1344,3719.9,3719.7,0.7745]
[1753492806040,0.1344,3719.9,3719.8,0.9013]
[1753492806361,2.438,3720.2,3719.8,0.9013]
[1753492806362,2.5724,3720.2,3719.9,0.55]
[1753492806544,2.5724,3720.2,3720.0,0.4694]
[1753492808063,2.5724,3720.2,3720.1,0.4694]
[1753492808272,0.1344,3720.2,3720.1,0.9013]
[1753492808562,2.439,3720.5,3720.2,0.55]
[1753492808739,2.439,3720.5,3720.3,0.9013]
[1753492808944,2.439,3720.5,3720.3,0.4319]
[1753492809162,0.1344,3720.6,3720.3,0.8217]
[1753492809363,2.68781077,3720.5,3720.1,0.6844]
[1753492809560,0.1344,3720.6,3720.2,1.0194]
[1753492809561,2.822141,3720.6,3720.2,1.0194]
[1753492809863,0.4778,3720.5,3719.9,4.2]
[1753492810044,0.1344,3720.3,3720.0,0.55]
[1753492810444,0.1344,3720.3,3720.0,1.0194]
[1753492810762,0.1344,3720.3,3720.1,0.4694]
[1753492811064,0.1344,3720.3,3720.1,0.4319]
[1753492811363,0.1344,3720.6,3720.2,1.723]
[1753492811565,0.1344,3720.6,3720.3,0.9013]
[1753492811950,0.1344,3720.6,3720.2,3.50970676]
[1753492812131,0.1344,3720.6,3720.4,0.9013]
[1753492812336,0.1344,3720.8,3720.4,0.9013]
[1753492812536,0.1344,3720.8,3720.5,0.9013]
[1753492812965,0.1344,3720.8,3720.6,0.4694]
[1753492813267,0.1344,3720.8,3720.6,0.9013]
[1753492813472,0.1344,3720.8,3720.6,0.4319]
[1753492813655,0.1344,3720.8,3720.7,0.4694]
[1753492814067,0.1344,3720.8,3720.3,2.82230187]
[1753492814068,0.66038671,3720.8,3720.4,0.55]
[1753492814236,4.26829802,3720.8,3720.4,0.55]
[1753492814565,0.5769,3720.8,3720.4,1.0194]
[1753492814955,0.4425,3720.7,3720.3,0.1344]
[1753492815160,0.1344,3720.5,3720.2,0.55]
[1753492815347,2.82222676,3720.5,3720.2,0.55]
[1753492815669,3.26472676,3720.5,3720.2,0.55]
[1753492816066,2.82222676,3720.5,3720.2,0.55]
[1753492816251,0.4425,3720.4,3720.2,0.55]
[1753492816570,0.4425,3720.4,3720.1,0.55]
[1753492816772,0.1344,3720.5,3720.1,1.0194]
[1753492817268,0.1344,3720.5,3720.2,0.4694]